fUSD/lending_fUSD_20241227
["ID","MTS","AMOUNT","RATE_DAILY","PERIOD"]
[346750227,1735261849092,-500.0,0.00012271,2]
[346750228,1735261849102,-1839.65,0.00012271,2]
[346750229,1735261849112,-500.0,0.00012271,2]
[346750230,1735261849122,-158.93,0.00012271,2]
[346750231,1735261849131,-1916.35,0.00012271,2]
[346750232,1735261849141,-500.0,0.00012271,2]
[346750233,1735261849153,-1174.3,0.00012271,2]
[346750234,1735261849163,-2340.08,0.00012271,2]
[346750235,1735261849173,-5763.53,0.00012271,2]
[346750236,1735261849183,-1933.85,0.00012271,2]
[346750237,1735261849192,-1698.24,0.00012271,2]
[346750238,1735261849202,-1250.91,0.00012271,2]
[346750239,1735261849212,-500.0,0.00012271,2]
[346750240,1735261849222,-514.05494677,0.00012271,2]
[346750241,1735261849232,-669.72,0.00012271,2]
[346750242,1735261849242,-500.0,0.00012271,2]
[346750243,1735261849251,-2628.36,0.00012271,2]
[346750244,1735261849261,-500.0,0.00012271,2]
[346750245,1735261849271,-764.72,0.00012271,2]
[346750246,1735261849281,-666.27,0.00012271,2]
[346750247,1735261849291,-4861.53,0.00012271,2]
[346750248,1735261849300,-1146.99,0.00012271,2]
[346750249,1735261849310,-1086.43,0.00012271,2]
[346750250,1735261849320,-3181.08,0.00012271,2]
[346750251,1735261849331,-13918.77,0.00012271,2]
[346750252,1735261849341,-500.0,0.00012271,2]
[346750253,1735261849351,-1968.12,0.00012271,2]
[346750254,1735261849361,-500.0,0.00012271,2]
[346750255,1735261849372,-500.0,0.00012271,2]
[346750256,1735261849382,-619.75,0.00012271,2]
[346750257,1735261849392,-503.22273658,0.00012271,2]
[346750258,1735261849404,-500.0,0.00012271,2]
[346750259,1735261849414,-500.0,0.00012271,2]
[346750260,1735261849424,-500.0,0.00012271,2]
[346750261,1735261849434,-500.0,0.00012271,2]
[346750262,1735261849444,-504.46809051,0.00012271,2]
[346750263,1735261849454,-2001.33,0.00012271,2]
[346750264,1735261849464,-500.0,0.00012271,2]
[346750265,1735261849474,-1721.2,0.00012271,2]
[346750266,1735261849484,-1296.42,0.00012271,2]
[346750267,1735261849494,-2037.51,0.00012271,2]
[346750268,1735261849505,-500.0,0.00012271,2]
[346750269,1735261849515,-500.0,0.00012271,2]
[346750270,1735261849526,-822.41,0.00012271,2]
[346750271,1735261849536,-645.09,0.00012271,2]
[346750272,1735261849546,-500.0,0.00012271,2]
[346750273,1735261849555,-500.0,0.00012271,2]
[346750274,1735261849566,-540.81900496,0.00012271,2]
[346750275,1735261849576,-3077.06,0.00012271,2]
[346750276,1735261849586,-500.0,0.00012271,2]
[346750277,1735261849596,-500.0,0.00012271,2]
[346750278,1735261849606,-500.0,0.00012271,2]
[346750279,1735261849615,-1623.76,0.00012271,2]
[346750280,1735261849626,-2367.43,0.00012271,2]
[346750281,1735261849635,-500.0,0.00012271,2]
[346750282,1735261849644,-560.17,0.00012271,2]
[346750283,1735261849657,-500.0,0.00012271,2]
[346750284,1735261849667,-500.0,0.00012271,2]
[346750285,1735261849679,-500.0,0.00012271,2]
[346750286,1735261849689,-1064.78,0.00012271,2]
[346750287,1735261849698,-576.4453747,0.00012271,2]
[346750288,1735261849707,-2905.67,0.00012271,2]
[346750289,1735261849717,-500.0,0.00012271,2]
[346750290,1735261849726,-505.9191559,0.00012271,2]
[346750291,1735261849735,-1385.52,0.00012271,2]
[346750292,1735261849745,-500.0,0.00012271,2]
[346750293,1735261849758,-6054.17,0.00012271,2]
[346750294,1735261849767,-500.0,0.00012271,2]
[346750295,1735261849776,-500.0,0.00012271,2]
[346750296,1735261849786,-500.0,0.00012271,2]
[346750297,1735261849795,-925.14,0.00012271,2]
[346750298,1735261849804,-10207.79,0.00012271,2]
[346750299,1735261849813,-500.0,0.00012271,2]
[346750300,1735261849823,-500.0,0.00012271,2]
[346750301,1735261849832,-1086.56,0.00012271,2]
[346750302,1735261849842,-500.0,0.00012271,2]
[346750303,1735261849852,-500.0,0.00012271,2]
[346750304,1735261849861,-509.61182014,0.00012271,2]
[346750305,1735261849871,-17607.16,0.00012271,2]
[346750306,1735261849881,-506.38476811,0.00012271,2]
[346750307,1735261849890,-1788.49,0.00012271,2]
[346750308,1735261849900,-500.0,0.00012271,2]
[346750309,1735261849909,-500.0,0.00012271,2]
[346750310,1735261849919,-500.0,0.00012271,2]
[346750311,1735261849929,-500.0,0.00012271,2]
[346750312,1735261849938,-1312.91,0.00012271,2]
[346750313,1735261849947,-500.0,0.00012271,2]
[346750314,1735261849956,-9366.46,0.00012271,2]
[346750315,1735261849966,-826.05,0.00012271,2]
[346750316,1735261849975,-500.0,0.00012271,2]
[346750317,1735261849984,-500.0,0.00012271,2]
[346750318,1735261849994,-13317.7,0.00012271,2]
[346750319,1735261850003,-500.0,0.00012271,2]
[346750320,1735261850012,-6645.56,0.00012271,2]
[346750321,1735261850022,-500.0,0.00012271,2]
[346750322,1735261850031,-1676.46,0.00012271,2]
[346750323,1735261850040,-1165.71,0.00012271,2]
[346750324,1735261850050,-500.0,0.00012271,2]
[346750325,1735261850059,-500.0,0.00012271,2]
[346750326,1735261850068,-500.0,0.00012271,2]
[346750327,1735261850078,-500.0,0.00012271,2]
[346750328,1735261850087,-500.0,0.00012271,2]
[346750329,1735261850096,-500.0,0.00012271,2]
[346750330,1735261850105,-500.0,0.00012271,2]
[346750331,1735261850115,-1619.37,0.00012271,2]
[346750332,1735261850125,-500.0,0.00012271,2]
[346750333,1735261850135,-1684.3,0.00012271,2]
[346750334,1735261850144,-500.0,0.00012271,2]
[346750335,1735261850155,-2913.06,0.00012271,2]
[346750336,1735261850164,-500.0,0.00012271,2]
[346750337,1735261850174,-788.79,0.00012271,2]
[346750338,1735261850183,-511.37075831,0.00012271,2]
[346750339,1735261850193,-500.0,0.00012271,2]
[346750340,1735261850202,-2270.95,0.00012271,2]
[346750341,1735261850212,-500.0,0.00012271,2]
[346750342,1735261850221,-253.57,0.00012271,2]
[346750343,1735261850231,-156.83,0.00012271,2]
[346750344,1735261850240,-500.0,0.00012271,2]
[346750345,1735261850249,-564.48,0.00012271,2]
[346750346,1735261850258,-500.0,0.00012271,2]
[346750347,1735261850267,-500.0,0.00012271,2]
[346750348,1735261850277,-4389.99,0.00012272,2]
[346750349,1735261850286,-151.0,0.00012273,2]
[346750350,1735261850295,-151.0,0.00012273,2]
[346750351,1735261850306,-1279.93,0.00012273,2]
[346750352,1735261850315,-1739.25,0.00012273,2]
[346750353,1735261850325,-500.0,0.00012273,2]
[346750354,1735261850334,-500.0,0.00012273,2]
[346750355,1735261850343,-978.91,0.00012273,2]
[346750356,1735261850353,-2525.53,0.00012273,2]
[346750357,1735261850362,-1850.66,0.00012273,2]
[346750358,1735261850372,-500.0,0.00012273,2]
[346750359,1735261850381,-500.0,0.00012273,2]
[346750360,1735261850391,-628.16,0.00012273,2]
[346750361,1735261850401,-500.0,0.00012273,2]
[346750362,1735261850411,-160.89423113,0.00012273,2]
[346750363,1735261850420,-500.0,0.00012273,2]
[346750364,1735261850430,-3935.24,0.00012273,2]
[346750365,1735261850440,-2106.95,0.00012273,2]
[346750366,1735261850451,-500.0,0.00012273,2]
[346750367,1735261850460,-4004.33,0.00012273,2]
[346750368,1735261850470,-1597.56,0.00012273,2]
[346750369,1735261850480,-500.0,0.00012273,2]
[346750370,1735261850489,-500.0,0.00012273,2]
[346750371,1735261850499,-780.98,0.00012273,2]
[346750372,1735261850511,-758.24,0.00012273,2]
[346750373,1735261850521,-810.12,0.00012273,2]
[346750374,1735261850530,-1591.01,0.00012273,2]
[346750375,1735261850540,-2196.92,0.00012273,2]
[346750376,1735261850550,-549.98,0.00012273,2]
[346750377,1735261850559,-500.0,0.00012273,2]
[346750378,1735261850570,-3313.87,0.00012273,2]
[346750379,1735261850579,-1461.75,0.00012273,2]
[346750380,1735261850589,-500.0,0.00012273,2]
[346750381,1735261850599,-3298.21,0.00012273,2]
[346750382,1735261850608,-730.97,0.00012273,2]
[346750383,1735261850618,-2887.77,0.00012273,2]
[346750384,1735261850630,-1173.46,0.00012273,2]
[346750385,1735261850639,-500.0,0.00012273,2]
[346750386,1735261850650,-1028.33,0.00012273,2]
[346750387,1735261850660,-500.0,0.00012273,2]
[346750388,1735261850670,-5642.83,0.00012273,2]
[346750389,1735261850679,-3587.21,0.00012273,2]
[346750390,1735261850689,-164.85797719,0.0001229,2]
[346750391,1735261850699,-794.68,0.00012328,2]
[346750392,1735261850709,-794.68,0.00012328,2]
[346750393,1735261850719,-637.35,0.00012328,2]
[346750394,1735261850728,-637.35,0.00012328,2]
[346750395,1735261850737,-151.0,0.00012329,2]
[346750396,1735261850748,-173.080918,0.00012329,2]
[346750397,1735261850761,-151.156736,0.00012329,2]
[346750398,1735261850770,-151.0,0.00012329,2]
[346750399,1735261850780,-151.0,0.00012329,2]
[346750400,1735261850789,-151.0,0.00012329,2]
[346750401,1735261850799,-151.0,0.00012329,2]
[346750402,1735261850809,-151.442428,0.00012329,2]
[346750403,1735261850818,-151.0,0.00012329,2]
[346750404,1735261850828,-151.0,0.00012329,2]
[346750405,1735261850838,-151.0,0.00012329,2]
[346750406,1735261850847,-177.19305,0.00012329,2]
[346750407,1735261850856,-151.0,0.00012329,2]
[346750408,1735261850866,-151.0,0.00012329,2]
[346750409,1735261850876,-151.0,0.00012329,2]
[346750410,1735261850885,-151.0,0.00012329,2]
[346750411,1735261850895,-151.0,0.00012329,2]
[346750412,1735261851052,-151.0,0.00012329,2]
[346750413,1735261851062,-151.0,0.00012329,2]
[346750414,1735261851071,-151.0,0.00012329,2]
[346750415,1735261851080,-151.0,0.00012329,2]
[346750416,1735261851089,-151.0,0.00012329,2]
[346750417,1735261851099,-154.180235,0.00012329,2]
[346750418,1735261851108,-154.180235,0.00012329,2]
[346750419,1735261851117,-154.180235,0.00012329,2]
[346750420,1735261851127,-154.180235,0.00012329,2]
[346750421,1735261851136,-154.180235,0.00012329,2]
[346750422,1735261851145,-154.180235,0.00012329,2]
[346750423,1735261851156,-154.180235,0.00012329,2]
[346750424,1735261851166,-154.180235,0.00012329,2]
[346750425,1735261851175,-154.180235,0.00012329,2]
[346750426,1735261851183,-154.180235,0.00012329,2]
[346750427,1735261851192,-151.0,0.00012329,2]
[346750428,1735261851201,-151.0,0.00012329,2]
[346750429,1735261851209,-174.647314,0.00012329,2]
[346750430,1735261851218,-151.0,0.00012329,2]
[346750431,1735261851226,-151.0,0.00012329,2]
[346750432,1735261851234,-151.0,0.00012329,2]
[346750433,1735261851244,-151.0,0.00012329,2]
[346750434,1735261851254,-151.0,0.00012329,2]
[346750435,1735261851263,-324.552185,0.00012329,2]
[346750436,1735261851273,-324.552185,0.00012329,2]
[346750437,1735261851283,-324.552185,0.00012329,2]
[346750438,1735261851292,-324.552185,0.00012329,2]
[346750439,1735261851301,-151.0,0.00012329,2]
[346750440,1735261851311,-151.0,0.00012329,2]
[346750441,1735261851324,-151.0,0.00012329,2]
[346750442,1735261851334,-151.0,0.00012329,2]
[346750443,1735261851344,-151.0,0.00012329,2]
[346750444,1735261851354,-151.0,0.00012329,2]
[346750445,1735261851363,-151.276154,0.00012329,2]
[346750446,1735261851372,-292.659563,0.00012329,2]
[346750447,1735261851382,-292.659563,0.00012329,2]
[346750448,1735261851392,-292.659563,0.00012329,2]
[346750449,1735261851403,-292.659563,0.00012329,2]
[346750450,1735261851412,-292.659563,0.00012329,2]
[346750451,1735261851422,-151.0,0.00012329,2]
[346750452,1735261851432,-151.0,0.00012329,2]
[346750453,1735261851442,-151.0,0.00012329,2]
[346750454,1735261851451,-151.0,0.00012329,2]
[346750455,1735261851461,-151.0,0.00012329,2]
[346750456,1735261851470,-281.32138428,0.00012329,2]
[346750457,1735261851521,-11.33817872,0.00012329,2]
[346750458,1735261851531,-250.33082129,0.00012329,2]
[346750459,1735261851565,-42.32874171,0.00012329,2]
[346750460,1735261851575,-292.659563,0.00012329,2]
[346750461,1735261851585,-292.659563,0.00012329,2]
[346750462,1735261851594,-292.659563,0.00012329,2]
[346750463,1735261851604,-357.59756929,0.00012329,2]
[346750464,1735261852421,-356.7699245,0.00011997,2]
[346750465,1735261852543,-143.2300755,0.00011997,2]
[346750466,1735261852553,-203.83397184,0.00011997,2]
[346750467,1735261853174,-296.16602816,0.00011997,2]
[346750468,1735261853184,-500.0,0.00011997,2]
[346750469,1735261853194,-238.64388737,0.00011997,2]
[346750470,1735261853375,-261.35611263,0.00011997,2]
[346750471,1735261853385,-141.16698308,0.00011997,2]
[346750472,1735261853397,-358.83301692,0.00011997,2]
[346750474,1735261853407,-500.0,0.00011997,2]
[346750476,1735261853417,-374.61670871,0.00012329,2]
[346750477,1735261853427,-732.214278,0.00012329,2]
[346750478,1735261853436,-732.214278,0.00012329,2]
[346750479,1735261853446,-732.214278,0.00012329,2]
[346750480,1735261853455,-198.90106885,0.00012329,2]
[346750481,1735261853493,-533.31320915,0.00012329,2]
[346750482,1735261853502,-732.214278,0.00012329,2]
[346750483,1735261853512,-732.214278,0.00012329,2]
[346750484,1735261853522,-732.214278,0.00012329,2]
[346750485,1735261853531,-732.214278,0.00012329,2]
[346750486,1735261853540,-295.61166829,0.00012329,2]
[346750531,1735261912733,-183.66,9.141e-05,2]
[346750538,1735262228004,196.55,9.024e-05,2]
[346750540,1735262384259,2000.0,0.0002,120]
[346750542,1735262424610,-974.85,9.476e-05,2]
[346750544,1735262459827,-203.28,0.00011201,2]
[346750545,1735262459853,-200.82,0.00011201,2]
[346750546,1735262459878,-250.0,0.00011201,2]
[346750547,1735262459901,-345.68,0.00011237,2]
[346750548,1735262459923,-250.0,0.00011256,2]
[346750549,1735262459946,-400.0,0.00011344,2]
[346750550,1735262459972,-503.23267301,0.00011414,2]
[346750551,1735262459995,-974.85,0.0001174,2]
[346750552,1735262460018,-656.819,0.0001186,2]
[346750553,1735262460046,-201.17,0.0001186,2]
[346750554,1735262460071,-14.14832699,0.0001186,2]
[346750557,1735262719521,814.6826059,9e-05,2]
[346750558,1735262729153,6369.61571982,9e-05,2]
[346750949,1735262753692,9380.85367838,6.94e-05,2]
[346751838,1735263032068,-212.73,0.00010137,2]
[346751839,1735263032078,-216.48021427,0.000112,2]
[346751840,1735263032212,-83.51978573,0.000112,2]
[346751841,1735263032221,-559.83,0.000112,2]
[346751842,1735263032231,-3226.96,0.00011201,2]
[346751843,1735263032240,-3000.0,0.00011201,2]
[346751844,1735263032249,-1000.0,0.00011219,2]
[346751845,1735263032258,-250.0,0.00011259,2]
[346751846,1735263032268,-187.27167301,0.0001186,2]
[346751847,1735263032278,-201.84,0.0001186,2]
[346751848,1735263032287,-200.01,0.0001186,2]
[346751849,1735263032297,-202.78,0.0001186,2]
[346751850,1735263032307,-201.74,0.0001186,2]
[346751851,1735263032317,-200.78,0.0001186,2]
[346751852,1735263032327,-201.85,0.0001186,2]
[346751853,1735263032336,-202.55,0.0001186,2]
[346751854,1735263032346,-200.74,0.0001186,2]
[346751856,1735263032356,-201.6,0.0001186,2]
[346751857,1735263032365,-50423.0496,0.00011896,2]
[346751859,1735263032374,-5000.0,0.00011896,2]
[346751861,1735263032384,-217.2923,0.00011896,2]
[346751863,1735263032393,-7202.703041,0.00011896,2]
[346751865,1735263032403,-201.37,0.00011897,2]
[346751867,1735263032413,-201.78,0.00011897,2]
[346751869,1735263032422,-34919.4524,0.00011897,2]
[346751872,1735263032432,-1000.0,0.00011897,2]
[346751874,1735263032441,-1407.2148,0.00011897,2]
[346751875,1735263032450,-177.28,0.000119,2]
[346751878,1735263032459,-22928.71855515,0.00011994,2]
[346751880,1735263032469,-740.92,0.00011994,2]
[346751882,1735263032478,-6219.23,0.00011994,2]
[346751883,1735263032487,-1049.14,0.00011994,2]
[346751885,1735263032496,-9556.81,0.00011994,2]
[346751887,1735263032506,-3940.42,0.00011994,2]
[346751889,1735263032518,-9082.21,0.00011994,2]
[346751891,1735263032527,-2954.41,0.00011994,2]
[346751893,1735263032537,-500.0,0.00011994,2]
[346751895,1735263032546,-500.0,0.00011994,2]
[346751897,1735263032555,-500.0,0.00011994,2]
[346751899,1735263032565,-7334.16,0.00011994,2]
[346751901,1735263032574,-978.91,0.00011994,2]
[346751903,1735263032583,-500.0,0.00011994,2]
[346751905,1735263032593,-559.65,0.00011994,2]
[346751907,1735263032602,-500.0,0.00011994,2]
[346751909,1735263032611,-591.33,0.00011994,2]
[346751911,1735263032621,-2201.03,0.00011994,2]
[346751913,1735263032630,-1022.59,0.00011994,2]
[346751915,1735263032640,-804.31,0.00011994,2]
[346751917,1735263032649,-522.49,0.00011994,2]
[346751919,1735263032666,-2973.99,0.00011994,2]
[346751921,1735263032675,-500.0,0.00011995,2]
[346751923,1735263032685,-500.0,0.00011995,2]
[346751926,1735263032695,-500.0,0.00011995,2]
[346751927,1735263032704,-846.49,0.00011995,2]
[346751929,1735263032715,-500.0,0.00011995,2]
[346751931,1735263032724,-1270.34,0.00011995,2]
[346751933,1735263032734,-500.0,0.00011995,2]
[346751935,1735263032743,-500.0,0.00011995,2]
[346751937,1735263032753,-599.79,0.00011995,2]
[346751939,1735263032764,-931.4,0.00011995,2]
[346751942,1735263032773,-500.0,0.00011995,2]
[346751944,1735263032783,-1984.28,0.00011995,2]
[346751946,1735263032792,-426.45913765,0.00011995,2]
[346751948,1735263032801,-1409.92,0.00011995,2]
[346751949,1735263032811,-1393.47,0.00011995,2]
[346751951,1735263032820,-1572.23,0.00011995,2]
[346751953,1735263032829,-1012.28,0.00011995,2]
[346751956,1735263032839,-912.26,0.00011995,2]
[346751957,1735263032848,-500.0,0.00011995,2]
[346751960,1735263032857,-680.21,0.00011995,2]
[346751961,1735263032866,-500.0,0.00011995,2]
[346751963,1735263032876,-860.0,0.00011995,2]
[346751965,1735263032885,-511.10584085,0.00011995,2]
[346751968,1735263032895,-500.0,0.00011995,2]
[346751969,1735263032907,-1441.51,0.00011995,2]
[346751972,1735263032916,-500.0,0.00011995,2]
[346751974,1735263032925,-500.0,0.00011995,2]
[346751975,1735263032934,-500.0,0.00011995,2]
[346751977,1735263032943,-727.32,0.00011995,2]
[346751979,1735263032952,-1114.56,0.00011995,2]
[346751981,1735263032961,-617.11,0.00011995,2]
[346751983,1735263032971,-500.0,0.00011995,2]
[346751985,1735263032980,-1921.67,0.00011995,2]
[346751987,1735263032989,-1137.07,0.00011995,2]
[346751989,1735263032999,-500.0,0.00011995,2]
[346751991,1735263033008,-500.0,0.00011995,2]
[346751992,1735263033018,-1792.0,0.00011995,2]
[346751993,1735263033027,-500.0,0.00011995,2]
[346751994,1735263033036,-500.0,0.00011995,2]
[346751995,1735263033046,-500.0,0.00011995,2]
[346751996,1735263033055,-644.06,0.00011995,2]
[346751997,1735263033065,-500.0,0.00011995,2]
[346751998,1735263033075,-677.46,0.00011995,2]
[346751999,1735263033085,-500.0,0.00011995,2]
[346752000,1735263033095,-500.0,0.00011995,2]
[346752001,1735263033105,-500.0,0.00011995,2]
[346752003,1735263033114,-593.42,0.00011995,2]
[346752005,1735263033124,-231.95944561,0.00011995,2]
[346752007,1735263033134,-500.0,0.00011995,2]
[346752009,1735263033143,-867.05,0.00011995,2]
[346752011,1735263033155,-2342.69,0.00011995,2]
[346752013,1735263033166,-937.0,0.00011995,2]
[346752014,1735263033175,-1140.37,0.00011995,2]
[346752017,1735263033187,-923.04,0.00011995,2]
[346752019,1735263033198,-1323.03,0.00011995,2]
[346752021,1735263033207,-500.0,0.00011995,2]
[346752023,1735263033217,-807.53,0.00011995,2]
[346752025,1735263033227,-2553.56,0.00011995,2]
[346752027,1735263033237,-500.0,0.00011995,2]
[346752029,1735263033249,-2060.9,0.00011995,2]
[346752031,1735263033260,-709.4,0.00011995,2]
[346752033,1735263033271,-667.75,0.00011995,2]
[346752035,1735263033281,-1948.44,0.00011995,2]
[346752037,1735263033290,-155.23595,0.00011995,2]
[346752039,1735263033300,-154.669237,0.00011995,2]
[346752041,1735263033310,-1093.716669,0.00011995,2]
[346752043,1735263033320,-520.96,0.00011995,2]
[346752045,1735263033329,-972.67,0.00011995,2]
[346752047,1735263033340,-736.057034,0.00011995,2]
[346752049,1735263033349,-1673.98,0.00011995,2]
[346752051,1735263033359,-500.0,0.00011995,2]
[346752053,1735263033369,-500.0,0.00011995,2]
[346752055,1735263033379,-19100.76,0.00011995,2]
[346752057,1735263033388,-544.84,0.00011995,2]
[346752059,1735263033399,-2467.65,0.00011995,2]
[346752061,1735263033410,-843.37,0.00011995,2]
[346752063,1735263033420,-500.0,0.00011995,2]
[346752065,1735263033430,-1075.08,0.00011995,2]
[346752067,1735263033440,-500.0,0.00011995,2]
[346752069,1735263033450,-500.0,0.00011995,2]
[346752070,1735263033461,-500.0,0.00011995,2]
[346752073,1735263033471,-2119.28,0.00011995,2]
[346752074,1735263033480,-934.73,0.00011995,2]
[346752076,1735263033489,-2224.72,0.00011995,2]
[346752078,1735263033499,-2640.87,0.00011995,2]
[346752080,1735263033509,-1055.63,0.00011995,2]
[346752082,1735263033522,-500.0,0.00011995,2]
[346752084,1735263033531,-1339.34,0.00011995,2]
[346752086,1735263033541,-1798.74,0.00011995,2]
[346752088,1735263033551,-1253.96,0.00011995,2]
[346752090,1735263033561,-528.22,0.00011995,2]
[346752092,1735263033571,-4056.21,0.00011995,2]
[346752094,1735263033581,-835.45,0.00011995,2]
[346752114,1735263033772,-2686.68,0.00011995,2]
[346752116,1735263033782,-3129.95,0.00011995,2]
[346752118,1735263033791,-1956.32,0.00011995,2]
[346752120,1735263033801,-596.41,0.00011995,2]
[346752122,1735263033810,-3830.17,0.00011995,2]
[346752124,1735263033820,-3090.35,0.00011995,2]
[346752126,1735263033829,-1796.07,0.00011995,2]
[346752128,1735263033839,-923.99,0.00011995,2]
[346752130,1735263033849,-1756.66,0.00011995,2]
[346752132,1735263033858,-5690.89,0.00011995,2]
[346752134,1735263033869,-500.0,0.00011995,2]
[346752136,1735263033881,-500.0,0.00011995,2]
[346752138,1735263033890,-2609.9,0.00011995,2]
[346752140,1735263033899,-500.0,0.00011995,2]
[346752142,1735263033910,-500.0,0.00011995,2]
[346752144,1735263033920,-1051.41,0.00011995,2]
[346752146,1735263033929,-911.23,0.00011995,2]
[346752148,1735263033940,-4456.41,0.00011995,2]
[346752149,1735263033950,-1556.72,0.00011995,2]
[346752150,1735263033959,-500.0,0.00011995,2]
[346752151,1735263033969,-14014.26,0.00011995,2]
[346752152,1735263033979,-1834.55,0.00011995,2]
[346752153,1735263033989,-1772.7,0.00011995,2]
[346752154,1735263033998,-1804.11,0.00011995,2]
[346752155,1735263034008,-1279.99961086,0.00011995,2]
[346752156,1735263034050,-35.59038914,0.00011995,2]
[346752157,1735263034060,-1425.70732497,0.00011995,2]
[346752158,1735263034071,-350.8690286,0.00011995,2]
[346752159,1735263034083,-696.11325729,0.00011995,2]
[346752160,1735263034094,-952.03767723,0.00011995,2]
[346752163,1735263037812,-400.0,0.0001135,2]
[346752164,1735263037823,-500.0,0.00011994,2]
[346752165,1735263037833,-500.0,0.00011994,2]
[346752166,1735263037844,-890.71,0.00011994,2]
[346752167,1735263037855,-500.0,0.00011994,2]
[346752168,1735263037867,-9711.11271191,0.00011995,2]
[346752169,1735263037877,-1706.94,0.00011995,2]
[346752170,1735263037888,-6359.87,0.00011995,2]
[346752171,1735263037898,-500.0,0.00011995,2]
[346752172,1735263037910,-2348.62,0.00011995,2]
[346752173,1735263037919,-1188.38,0.00011995,2]
[346752174,1735263037929,-2835.05,0.00011995,2]
[346752175,1735263037940,-1488.44,0.00011995,2]
[346752176,1735263037949,-3109.36,0.00011995,2]
[346752177,1735263037960,-2663.53,0.00011995,2]
[346752178,1735263037971,-996.01,0.00011995,2]
[346752179,1735263037981,-5935.8,0.00011995,2]
[346752180,1735263037991,-2820.64,0.00011995,2]
[346752181,1735263038001,-1639.45,0.00011995,2]
[346752182,1735263038011,-3258.24,0.00011995,2]
[346752183,1735263038020,-1270.06,0.00011995,2]
[346752184,1735263038029,-1637.03,0.00011995,2]
[346752185,1735263038039,-1203.51,0.00011995,2]
[346752186,1735263038047,-976.05,0.00011995,2]
[346752187,1735263038059,-500.0,0.00011995,2]
[346752188,1735263038068,-8585.92,0.00011995,2]
[346752189,1735263038079,-500.0,0.00011995,2]
[346752190,1735263038089,-500.0,0.00011995,2]
[346752191,1735263038099,-500.0,0.00011995,2]
[346752192,1735263038108,-1484.42,0.00011995,2]
[346752193,1735263038117,-9357.14,0.00011995,2]
[346752194,1735263038126,-2095.57,0.00011995,2]
[346752195,1735263038135,-6077.03,0.00011995,2]
[346752196,1735263038145,-500.0,0.00011995,2]
[346752198,1735263038154,-500.0,0.00011995,2]
[346752200,1735263038164,-500.0,0.00011995,2]
[346752202,1735263038174,-16141.14,0.00011995,2]
[346752204,1735263038183,-500.0,0.00011995,2]
[346752206,1735263038192,-500.0,0.00011995,2]
[346752208,1735263038202,-473.06117299,0.00011995,2]
[346752215,1735263038261,-467.52,0.00011995,2]
[346752218,1735263038272,-1190.31882701,0.00011995,2]
[346752220,1735263038281,-3830.27,0.00011995,2]
[346752222,1735263038290,-1069.21,0.00011995,2]
[346752224,1735263038299,-377.17402171,0.00011995,2]
[346752226,1735263038309,-501.37296725,0.00011995,2]
[346752227,1735263038319,-500.0,0.00011995,2]
[346752228,1735263038328,-1728.91,0.00011995,2]
[346752229,1735263038337,-234.27361673,0.00011995,2]
[346752231,1735263039935,-1848.09638327,0.00011995,2]
[346752232,1735263039945,-500.0,0.00011995,2]